bitfinex/quotes_BTCUSD_20220212
["timestamp","ask_amount","ask_price","bid_price","bid_amount"]
[1644672311153,0.0004572,42353.0,42347.0,0.15620695]
[1644672311553,0.0004572,42353.0,42348.0,0.5]
[1644672312155,0.00035977,42357.0,42354.0,0.2574768]
[1644672312360,0.20118548,42358.0,42354.0,0.2574768]
[1644672312554,0.0001,42357.0,42354.0,0.2574768]
[1644672312956,0.00035977,42357.0,42354.0,0.2574768]
[1644672313157,0.0001,42357.0,42354.0,0.2574768]
[1644672313355,0.00035977,42357.0,42354.0,0.2574768]
[1644672313600,0.0001,42357.0,42354.0,0.2574768]
[1644672314001,0.20092571,42357.0,42354.0,0.2574768]
[1644672314201,0.0001,42356.0,42354.0,0.2574768]
[1644672314401,0.00035977,42356.0,42354.0,0.2574768]
[1644672314600,0.00035977,42357.0,42354.0,0.2574768]
[1644672314803,0.00081675,42357.0,42354.0,0.2574768]
[1644672315200,0.20164246,42357.0,42354.0,0.2574768]
[1644672315400,0.0001,42356.0,42354.0,0.2574768]
[1644672315602,0.00035977,42356.0,42349.0,0.1228]
[1644672315800,0.00035977,42356.0,42350.0,0.5]
[1644672316600,0.00025977,42356.0,42353.0,0.26962269]
[1644672317258,0.00081677,42357.0,42353.0,0.26962269]
[1644672317452,0.000557,42357.0,42353.0,0.26962269]
[1644672317656,0.00081677,42357.0,42353.0,0.26962269]
[1644672318051,0.00035977,42357.0,42353.0,0.26962269]
[1644672318252,0.00081677,42357.0,42353.0,0.26962269]
[1644672319256,0.00035977,42357.0,42353.0,0.26962269]
[1644672319653,0.00081677,42357.0,42353.0,0.26962269]
[1644672319856,0.000457,42357.0,42353.0,0.26962269]
[1644672320057,0.000457,42357.0,42354.0,0.5]
[1644672320656,0.0710054,42355.0,42354.0,0.5]
[1644672320856,0.0001,42355.0,42354.0,0.5]
[1644672321125,0.00035977,42357.0,42354.0,0.5]
[1644672321325,0.0001,42357.0,42354.0,0.5]
[1644672321526,0.00035977,42357.0,42354.0,0.5]
[1644672321726,0.0001,42357.0,42354.0,0.5]
[1644672321928,0.00035977,42357.0,42354.0,0.5]
[1644672322126,0.06999684,42358.0,42354.0,0.5]
[1644672322327,0.00035977,42357.0,42354.0,0.5]
[1644672322528,0.0001,42357.0,42354.0,0.5]
[1644672323228,0.00035977,42357.0,42354.0,0.5]
[1644672323426,0.0001,42357.0,42354.0,0.5]
[1644672323626,0.00035977,42357.0,42354.0,0.5]
[1644672326058,0.00035977,42357.0,42353.0,0.26962269]
[1644672326254,0.06480532,42358.0,42353.0,0.26962269]
[1644672326453,0.00026079,42357.0,42353.0,0.26962269]
[1644672326655,0.00049198,42357.0,42353.0,0.26962269]
[1644672326854,0.00075277,42357.0,42353.0,0.26962269]
[1644672327057,0.00075277,42357.0,42354.0,0.5]
[1644672327256,0.00075277,42357.0,42354.0,0.5001]
[1644672327658,0.00026079,42358.0,42354.0,0.5001]
[1644672327858,0.00026079,42359.0,42354.0,0.5001]
[1644672328061,0.42040222,42367.0,42354.0,0.5001]
[1644672328062,0.00049197,42358.0,42354.0,0.5001]
[1644672328707,0.00049197,42358.0,42356.0,0.08236256]
[1644672328908,0.00026079,42358.0,42356.0,0.08236256]
[1644672329106,0.00049197,42358.0,42356.0,0.08236256]
[1644672329309,0.00049197,42358.0,42357.0,0.5]
[1644672329710,0.00049197,42358.0,42357.0,0.85]
[1644672330108,0.00026079,42363.0,42357.0,0.8973]
[1644672330311,0.00026536,42360.0,42358.0,0.06510585]
[1644672330513,0.00026536,42360.0,42359.0,0.5]
[1644672331314,0.00026079,42365.0,42359.0,0.5]
[1644672331513,0.00049244,42362.0,42360.0,0.21784467]
[1644672331814,0.00049244,42362.0,42361.0,0.5]
[1644672332013,0.00049244,42362.0,42361.0,0.78105446]
[1644672332272,0.00049244,42362.0,42361.0,0.5]
[1644672332465,0.00026079,42364.0,42361.0,0.5]
[1644672332664,0.00026079,42365.0,42361.0,0.5]
[1644672332864,0.00049243,42364.0,42361.0,0.3542937]
[1644672333068,0.07161003,42364.0,42361.0,0.3542937]
[1644672333469,0.00049243,42364.0,42361.0,0.3542937]
[1644672333667,0.00026079,42364.0,42361.0,0.3542937]
[1644672333867,0.00075322,42365.0,42361.0,0.3542937]
[1644672334067,0.00049243,42365.0,42361.0,0.3542937]
[1644672334265,0.00049243,42365.0,42360.0,0.21784467]
[1644672334968,0.00026079,42366.0,42360.0,0.21784467]
[1644672335167,0.00049243,42365.0,42360.0,0.5011418]
[1644672335867,0.00049243,42365.0,42361.0,0.5]
[1644672336113,0.00026079,42366.0,42361.0,0.5]
[1644672336308,0.00118339,42367.0,42361.0,0.5]
[1644672336507,0.00049243,42365.0,42361.0,0.5]
[1644672336806,0.00075322,42365.0,42361.0,0.5]
[1644672337207,0.00049243,42365.0,42361.0,0.5]
[1644672337406,0.00026079,42366.0,42361.0,0.5]
[1644672337606,0.00049242,42365.0,42361.0,0.5]
[1644672338506,0.00026079,42366.0,42361.0,0.5]
[1644672338712,0.00118339,42367.0,42361.0,0.5]
[1644672338908,0.00049242,42365.0,42361.0,0.5]
[1644672339309,0.00075321,42365.0,42361.0,0.5]
[1644672339509,0.00049242,42365.0,42361.0,0.5]
[1644672339756,0.00026079,42366.0,42361.0,0.5]
[1644672339958,0.00049242,42365.0,42361.0,0.5]
[1644672340962,0.00026079,42366.0,42361.0,0.5]
[1644672341161,0.00048506,42365.0,42361.0,0.5]
[1644672342160,0.00026079,42366.0,42361.0,0.5]
[1644672342462,0.00048506,42365.0,42361.0,0.5]
[1644672343360,0.00026079,42366.0,42361.0,0.5]
[1644672343605,0.00025815,42365.0,42361.0,0.5]
[1644672344505,0.00026079,42366.0,42361.0,0.5]
[1644672344707,0.00026766,42365.0,42361.0,0.5]
[1644672345207,0.00026766,42365.0,42360.0,0.5011418]
[1644672345807,0.00026079,42366.0,42360.0,0.5011418]
[1644672346007,0.00026766,42365.0,42362.0,0.5]
[1644672347011,0.00026079,42366.0,42362.0,0.5]
[1644672347263,0.00049486,42366.0,42362.0,0.5]
[1644672347464,0.00075565,42366.0,42362.0,0.5]
[1644672347867,0.07785611,42363.0,42362.0,0.5]
[1644672348566,0.00026079,42364.0,42362.0,0.5]
[1644672348764,0.00075566,42365.0,42362.0,0.5]
[1644672348968,0.00026079,42364.0,42360.0,0.21784467]
[1644672349167,0.00049487,42365.0,42360.0,0.21784467]
[1644672349365,0.00026079,42364.0,42360.0,0.21784467]
[1644672349571,0.00049487,42364.0,42360.0,0.21784467]
[1644672349965,0.00075566,42364.0,42360.0,0.21784467]
[1644672350170,0.00049487,42364.0,42360.0,0.21784467]
[1644672350569,0.00026079,42364.0,42363.0,0.08384001]
[1644672350767,0.00049487,42364.0,42363.0,0.37394525]
[1644672351809,0.00026079,42366.0,42363.0,0.37394525]
[1644672352010,0.00049486,42366.0,42363.0,0.08384001]
[1644672352607,0.00049486,42366.0,42360.0,0.21784467]
[1644672352812,0.00075565,42366.0,42361.0,0.5]
[1644672353009,0.00026079,42366.0,42361.0,0.5]
[1644672353208,0.00049487,42365.0,42361.0,0.5]
[1644672353411,0.00049487,42365.0,42362.0,0.27972565]
[1644672353609,0.00049487,42365.0,42362.0,0.27963148]
[1644672354212,0.00026079,42366.0,42362.0,0.27963148]
[1644672354409,0.00049486,42366.0,42362.0,0.27963148]
[1644672354610,0.00075565,42366.0,42361.0,0.5]
[1644672355260,0.00075565,42366.0,42361.0,0.77956889]
[1644672355462,0.00026079,42366.0,42361.0,0.77956889]
[1644672355661,0.00049486,42366.0,42361.0,0.5]
[1644672355861,0.00075565,42366.0,42361.0,0.5]
[1644672356464,0.00075565,42366.0,42360.0,0.21784467]
[1644672356662,0.00026079,42366.0,42360.0,0.21784467]
[1644672356866,0.00049486,42366.0,42360.0,0.21784467]
[1644672357066,0.07581394,42364.0,42360.0,0.21784467]
[1644672358064,0.07630881,42364.0,42360.0,0.21784467]
[1644672358264,0.0765696,42364.0,42360.0,0.21784467]
[1644672358526,0.07630881,42364.0,42360.0,0.21784467]
[1644672358926,0.07581394,42364.0,42360.0,0.21784467]
[1644672359127,0.07630881,42364.0,42360.0,0.21784467]
[1644672360127,0.07581394,42364.0,42360.0,0.21784467]
[1644672360529,0.07630881,42364.0,42360.0,0.21784467]
[1644672361427,0.07581394,42364.0,42360.0,0.21784467]
[1644672361629,0.07630881,42364.0,42360.0,0.21784467]
[1644672362665,0.00026079,42366.0,42360.0,0.21784467]
[1644672362865,0.25859847,42367.0,42360.0,0.11458772]
[1644672363066,0.00049487,42364.0,42355.0,0.0001]
[1644672363265,0.00049487,42364.0,42355.0,0.5001]
[1644672363466,0.00049487,42364.0,42356.0,0.0001]
[1644672363668,0.08127651,42361.0,42356.0,0.0001]
[1644672363869,0.08127651,42361.0,42355.0,0.5001]
[1644672364469,0.25670207,42360.0,42355.0,0.5001]
[1644672364673,0.46039106,42360.0,42355.0,0.5001]
[1644672364871,0.46039106,42360.0,42355.0,0.5]
[1644672365271,0.25722822,42360.0,42355.0,0.5]
[1644672365671,0.25722822,42360.0,42355.0,0.5001]
[1644672365872,0.25722822,42360.0,42355.0,0.5]
[1644672366108,0.25722822,42360.0,42353.0,0.0001]
[1644672366309,0.25722822,42360.0,42349.0,0.25027739]
[1644672366310,0.24225186,42359.0,42352.0,0.0001]
[1644672366511,0.20082571,42358.0,42350.0,0.5001]
[1644672366710,0.20082571,42358.0,42351.0,0.0001]
[1644672366909,0.29807921,42357.0,42351.0,0.0001]
[1644672367111,0.54890492,42357.0,42351.0,0.0001]
[1644672367712,0.00024267,42356.0,42351.0,0.0001]
[1644672367911,0.00024267,42356.0,42349.0,0.0001]
[1644672368112,0.08485776,42351.0,42349.0,0.0001]
[1644672368514,0.00024267,42356.0,42347.0,0.5001]
[1644672368713,0.34807921,42357.0,42348.0,0.0001]
[1644672368714,0.29807921,42357.0,42348.0,0.0001]
[1644672368913,0.00047174,42353.0,42348.0,0.0001]
[1644672369868,0.0732308,42355.0,42348.0,0.0001]
[1644672370067,0.00046536,42353.0,42348.0,0.0001]
[1644672370264,0.00046536,42353.0,42347.0,0.0001]
[1644672370667,0.00046536,42353.0,42347.0,0.5001]
[1644672370866,0.00046536,42353.0,42348.0,0.20037739]
[1644672371165,0.04942198,42359.0,42349.0,0.0001]
[1644672371166,0.04756079,42359.0,42349.0,0.0001]
[1644672371366,0.00046536,42353.0,42349.0,0.20037739]
[1644672371567,0.00046536,42353.0,42350.0,0.0001]
[1644672371970,0.00046536,42353.0,42351.0,0.08395504]
[1644672372171,0.00046536,42353.0,42352.0,0.0001]
[1644672372369,0.00026079,42359.0,42352.0,0.0001]
[1644672372567,0.00046536,42354.0,42352.0,0.0001]
[1644672372767,0.00046536,42354.0,42353.0,0.21774215]
[1644672372968,0.00046536,42354.0,42353.0,0.21784215]
[1644672373610,0.00026079,42359.0,42353.0,0.21784215]
[1644672373910,0.00045771,42356.0,42354.0,0.0001]
[1644672374710,0.00026079,42361.0,42354.0,0.0001]
[1644672374915,0.20291705,42363.0,42360.0,0.26476493]
[1644672375113,0.20265626,42363.0,42360.0,0.26476493]
[1644672375711,0.00183055,42363.0,42360.0,0.26476493]
[1644672375911,0.25657894,42363.0,42360.0,0.26476493]
[1644672376512,0.20154417,42364.0,42360.0,0.26476493]
[1644672376713,0.20128338,42364.0,42360.0,0.26476493]
[1644672376912,0.20082571,42363.0,42360.0,0.26476493]
[1644672378563,0.20128452,42364.0,42360.0,0.26476493]
[1644672379164,0.20128452,42364.0,42361.0,0.5]
[1644672379565,0.2010865,42365.0,42361.0,0.5]
[1644672379764,0.20128451,42365.0,42361.0,0.5]
[1644672380565,0.20128451,42365.0,42361.0,0.57211996]
[1644672380764,0.20082571,42365.0,42361.0,0.57211996]
[1644672381010,0.20128406,42365.0,42361.0,0.57211996]
[1644672381709,0.20128406,42365.0,42361.0,0.5]
[1644672381907,0.20082571,42365.0,42360.0,0.26476493]
[1644672382110,0.20128406,42365.0,42360.0,0.26476493]
[1644672383209,0.20082571,42365.0,42360.0,0.26476493]
[1644672383409,0.20128406,42365.0,42360.0,0.26476493]
[1644672383809,0.20128406,42365.0,42361.0,0.07161146]
[1644672384012,0.00045835,42365.0,42361.0,0.07161146]
[1644672384411,0.00026079,42366.0,42361.0,0.07161146]
[1644672384614,0.00045838,42365.0,42361.0,0.07161146]
[1644672385463,0.00026079,42366.0,42361.0,0.07161146]
[1644672385662,0.00118339,42367.0,42361.0,0.07161146]
[1644672385863,0.00045838,42365.0,42361.0,0.07161146]
[1644672386063,0.00045838,42365.0,42362.0,0.5]
[1644672386263,0.00071917,42365.0,42362.0,0.5]
[1644672386465,0.00045838,42365.0,42362.0,0.5]
[1644672386665,0.00026079,42366.0,42362.0,0.5]
[1644672386866,0.20082571,42366.0,42362.0,0.5]
[1644672387064,0.00071917,42366.0,42362.0,0.5]
[1644672387869,0.00018889,42366.0,42362.0,0.5]
[1644672388272,0.00045837,42366.0,42362.0,0.5]
[1644672388507,0.00064726,42366.0,42362.0,0.5]
[1644672388707,0.00064726,42366.0,42365.0,0.08026892]
[1644672388907,0.00045837,42366.0,42365.0,0.08026892]
[1644672389210,0.20174831,42367.0,42360.0,0.26476493]
[1644672389406,0.00018889,42366.0,42361.0,0.5]
[1644672389608,0.2019372,42367.0,42361.0,0.5]
[1644672390009,0.20082571,42366.0,42361.0,0.5]
[1644672390211,0.00018889,42366.0,42361.0,0.5]
[1644672390412,0.20082571,42366.0,42361.0,0.5]
[1644672390608,0.20147298,42366.0,42361.0,0.5]
[1644672390808,0.00064727,42366.0,42361.0,0.5]
[1644672391608,0.00018889,42366.0,42361.0,0.79433867]
[1644672391808,0.00064727,42366.0,42361.0,0.79433867]
[1644672392462,0.00064727,42366.0,42361.0,0.5]
[1644672392861,0.00018889,42366.0,42361.0,0.5]
[1644672393064,0.00045838,42366.0,42361.0,0.12216315]
[1644672393261,0.00064727,42366.0,42360.0,0.33238787]
[1644672393962,0.00018889,42366.0,42360.0,0.33238787]
[1644672394163,0.00045838,42365.0,42360.0,0.33238787]
[1644672395162,0.00018889,42366.0,42360.0,0.33238787]
[1644672395362,0.00045838,42365.0,42360.0,0.33238787]
[1644672396410,0.00018889,42366.0,42360.0,0.33238787]
[1644672396610,0.00045838,42365.0,42360.0,0.33238787]
[1644672397511,0.00018889,42366.0,42360.0,0.33238787]
[1644672397719,0.00111149,42367.0,42360.0,0.33238787]
[1644672397911,0.00045838,42365.0,42360.0,0.33238787]
[1644672398312,0.00064727,42365.0,42360.0,0.33238787]
[1644672398512,0.00045838,42365.0,42360.0,0.33238787]
[1644672398711,0.00018889,42366.0,42360.0,0.33238787]
[1644672398916,0.00045838,42365.0,42360.0,0.33238787]
[1644672399958,0.162,42369.0,42367.0,0.19432586]
[1644672399959,0.18546563,42369.0,42367.0,0.19432586]
[1644672400158,0.07830816,42372.0,42371.0,0.00183325]
[1644672400359,0.12536823,42372.0,42367.0,0.19432586]
[1644672400556,0.77512355,42376.0,42372.0,0.01177659]
[1644672400557,0.33239162,42373.0,42372.0,0.01177659]
[1644672400760,0.33217284,42373.0,42372.0,0.01177659]
[1644672400958,0.54715301,42373.0,42372.0,0.01177659]
[1644672401358,0.24598017,42373.0,42372.0,0.01177659]
[1644672401559,0.54715429,42373.0,42372.0,0.01177659]
[1644672401960,0.24598017,42373.0,42372.0,0.01177659]
[1644672403611,0.118072,42372.0,42366.0,0.01177659]
[1644672403811,0.30118823,42371.0,42366.0,0.01177659]
[1644672404010,0.30118823,42371.0,42365.0,0.00322254]
[1644672404211,0.0002628,42371.0,42365.0,0.00322254]
[1644672404411,0.059035,42370.0,42365.0,0.00322254]
[1644672404811,0.0592978,42370.0,42365.0,0.00322254]
[1644672405009,0.05952854,42370.0,42365.0,0.00322254]
[1644672405210,0.27446135,42371.0,42365.0,0.00322254]
[1644672405810,2.48883316,42367.0,42365.0,0.00322254]
[1644672406211,0.27446135,42371.0,42365.0,0.00322254]
[1644672406409,0.32121099,42370.0,42365.0,0.00322254]
[1644672406611,0.380479,42369.0,42365.0,0.00322254]
[1644672406811,0.1473,42369.0,42365.0,0.00322254]
[1644672407111,0.49892355,42369.0,42365.0,0.00322254]
[1644672407665,0.1473,42369.0,42365.0,0.00322254]
[1644672408064,0.0473,42369.0,42365.0,0.00322254]
[1644672409869,0.25100727,42366.0,42365.0,0.00322254]
[1644672410268,0.30100727,42366.0,42365.0,0.00322254]
[1644672410471,0.05,42366.0,42365.0,0.00322254]
[1644672410667,0.15,42366.0,42365.0,0.00322254]
[1644672411709,0.05,42366.0,42365.0,0.00322254]
[1644672412111,0.85928414,42366.0,42365.0,0.00322254]
[1644672412310,0.67340514,42366.0,42365.0,0.00322254]
[1644672415164,1.35820769,42366.0,42365.0,0.00322254]
[1644672415364,1.02502869,42366.0,42365.0,0.00322254]
[1644672416165,1.35820769,42366.0,42365.0,0.00322254]
[1644672416565,1.02502869,42366.0,42365.0,0.00322254]
[1644672417166,0.85355212,42366.0,42365.0,0.00322254]
[1644672417969,1.02488736,42366.0,42365.0,0.00322254]
[1644672418170,1.35806636,42366.0,42365.0,0.00322254]
[1644672418370,1.02488736,42366.0,42365.0,0.00322254]
[1644672418813,1.35806636,42366.0,42365.0,0.00322254]
[1644672419016,0.74315268,42366.0,42365.0,0.00322254]
[1644672419213,1.07633168,42366.0,42365.0,0.00322254]
[1644672419414,0.74315268,42366.0,42365.0,0.00322254]
[1644672419614,1.07633168,42366.0,42365.0,0.00322254]
[1644672419813,0.97161056,42366.0,42365.0,0.00322254]
[1644672420016,1.30478956,42366.0,42365.0,0.00322254]
[1644672420415,0.97161056,42366.0,42365.0,0.00128225]
[1644672420617,1.30478956,42366.0,42365.0,0.00128225]
[1644672420815,0.97161056,42366.0,42365.0,0.00128225]
[1644672421017,1.30478956,42366.0,42365.0,0.00128225]
[1644672421621,0.74315268,42366.0,42365.0,0.00128225]
[1644672421820,1.07633168,42366.0,42365.0,0.00128225]
[1644672422462,0.72484946,42366.0,42365.0,0.00128225]
[1644672422862,1.01580311,42366.0,42365.0,0.00128225]
[1644672423062,0.059044,42363.0,42354.0,0.14987756]
[1644672423262,0.20082188,42359.0,42354.0,0.14987756]
[1644672423462,0.25888949,42358.0,42354.0,0.14987756]
[1644672423664,0.45971137,42358.0,42349.0,0.28]
[1644672423862,0.60971137,42358.0,42349.0,0.28]
[1644672424267,0.35888949,42358.0,42349.0,0.28]
[1644672424763,0.25888949,42358.0,42350.0,0.22186417]
[1644672425263,0.25888949,42358.0,42347.0,0.31563725]
[1644672425464,0.3980543,42357.0,42347.0,0.1152]
[1644672425862,0.4980543,42357.0,42347.0,0.1152]
[1644672426114,0.0729582,42355.0,42347.0,0.1152]
[1644672426314,0.26813039,42354.0,42347.0,0.1152]
[1644672426513,0.26813039,42354.0,42350.0,0.00049632]
[1644672427115,0.23319127,42352.0,42350.0,0.00013432]
[1644672427318,0.70876402,42351.0,42350.0,0.00013432]
[1644672427516,0.70876402,42351.0,42343.0,0.57501011]
[1644672427517,0.9095859,42351.0,42343.0,0.57501011]
[1644672427717,0.47558502,42351.0,42343.0,0.57501011]
[1644672428015,0.06977457,42348.0,42343.0,0.5748]
[1644672428215,0.380479,42347.0,42344.0,0.0001]
[1644672428416,0.333179,42346.0,42344.0,0.0001]
[1644672428615,0.0473,42347.0,42344.0,0.0001]
[1644672428814,0.0473,42347.0,42342.0,0.00031011]
[1644672429016,0.0473,42347.0,42342.0,0.0001]
[1644672429317,0.26303748,42347.0,42342.0,0.00031011]
[1644672429619,0.31033748,42347.0,42342.0,0.0001]
[1644672429860,0.31033748,42347.0,42339.0,0.00021011]
[1644672430063,0.31033748,42347.0,42338.0,0.00116811]
[1644672430461,0.31033748,42347.0,42341.0,0.05]
[1644672430664,0.31033748,42347.0,42342.0,0.0001]
[1644672430962,0.31033748,42347.0,42342.0,0.00031011]
[1644672431177,0.31033748,42347.0,42342.0,0.0001]
[1644672431363,0.31033748,42347.0,42342.0,0.00080647]
[1644672431566,0.31033748,42347.0,42342.0,0.00059636]
[1644672431763,0.31033748,42347.0,42342.0,0.00049636]
[1644672431967,0.31033748,42347.0,42342.0,0.00080647]
[1644672431968,0.059068,42345.0,42342.0,0.00080647]
[1644672432366,0.059068,42345.0,42342.0,0.00031011]
[1644672433268,0.31033748,42347.0,42342.0,0.00031011]
[1644672433742,0.31033748,42347.0,42342.0,0.00080647]
[1644672434543,0.0473,42347.0,42342.0,0.00080647]
[1644672434746,0.0473,42347.0,42342.0,0.00031011]
[1644672434946,0.0473,42347.0,42342.0,0.00049636]
[1644672435145,0.0473,42347.0,42342.0,0.00071032]
[1644672436047,0.0473,42347.0,42342.0,0.00021396]
[1644672436248,0.0473,42347.0,42342.0,0.00049636]
[1644672436448,0.0473,42347.0,42342.0,0.00071032]
[1644672437267,0.0473,42347.0,42342.0,0.00021396]
[1644672437464,0.0473,42347.0,42341.0,0.04307199]
[1644672439965,0.0473,42347.0,42341.0,0.04328595]
[1644672440568,0.42235822,42344.0,42341.0,0.04328595]
[1644672440767,0.42235822,42344.0,42341.0,0.00021396]
[1644672440768,0.333168,42343.0,42341.0,0.00021396]
[1644672441018,0.0473,42343.0,42340.0,0.00023086]
[1644672442018,0.0473,42343.0,42339.0,0.00021396]
[1644672442216,0.0473,42343.0,42339.0,0.00049638]
[1644672442418,0.0473,42343.0,42339.0,0.00071034]
[1644672443014,0.0473,42343.0,42340.0,0.277885]
[1644672443215,0.0473,42343.0,42341.0,0.0001]
[1644672443415,0.0473,42343.0,42342.0,0.277871]
[1644672443616,0.0473,42343.0,42342.0,0.0001]
[1644672443816,0.0473,42343.0,42340.0,0.00021396]
[1644672443817,0.0473,42343.0,42340.0,0.27809696]
[1644672444015,0.0473,42343.0,42341.0,0.277978]
[1644672444215,0.0473,42343.0,42342.0,0.0001]
[1644672444415,0.22983488,42350.0,42342.0,0.0001]
[1644672444615,0.00045757,42349.0,42343.0,0.24009754]
[1644672444867,0.00045757,42349.0,42344.0,0.277952]
[1644672445070,0.00045757,42349.0,42345.0,0.0001]
[1644672445270,0.00045757,42349.0,42344.0,0.0001]
[1644672445666,0.19896647,42351.0,42344.0,0.0001]
[1644672445866,2.68962002,42348.0,42344.0,0.0001]
[1644672446067,0.0004576,42349.0,42344.0,0.0001]
[1644672446472,0.0004576,42349.0,42344.0,0.08831238]
[1644672446667,0.0004576,42349.0,42345.0,0.0001]
[1644672446868,0.19896647,42351.0,42345.0,0.0001]
[1644672447068,0.00022716,42349.0,42345.0,0.0001]
[1644672448070,0.19896647,42351.0,42345.0,0.0001]
[1644672448370,0.00046002,42349.0,42345.0,0.0001]
[1644672449224,0.24896647,42351.0,42345.0,0.0001]
[1644672449426,0.00046002,42349.0,42345.0,0.0001]
[1644672450229,0.333168,42348.0,42345.0,0.0001]
[1644672450425,0.24896647,42351.0,42345.0,0.0001]
[1644672450626,0.1,42348.0,42345.0,0.0001]
[1644672450825,0.05,42348.0,42345.0,0.0001]
[1644672451027,0.05952402,42349.0,42342.0,0.00021396]
[1644672451228,0.05952402,42349.0,42341.0,0.04307199]
[1644672451428,0.05952402,42349.0,42341.0,0.04328595]
[1644672451627,0.059064,42349.0,42341.0,0.04328595]
[1644672451828,0.05952242,42349.0,42341.0,0.04307199]
[1644672452029,0.05952242,42349.0,42344.0,0.08783123]
[1644672452273,0.05952242,42349.0,42345.0,0.0001]
[1644672452868,0.50313958,42351.0,42345.0,0.0001]
[1644672453063,0.34880449,42351.0,42345.0,0.0001]
[1644672453264,0.24880449,42351.0,42345.0,0.0001]
[1644672453465,0.34880449,42351.0,42345.0,0.0001]
[1644672453865,0.14983802,42351.0,42346.0,0.277836]
[1644672454064,0.14983802,42351.0,42347.0,0.0001]
[1644672454065,0.1,42351.0,42347.0,0.0001]
[1644672454266,0.106358,42352.0,42351.0,0.21735672]
[1644672454468,0.059058,42352.0,42351.0,0.21735672]
[1644672455068,0.059053,42355.0,42351.0,0.21735672]
[1644672455276,0.5,42356.0,42354.0,0.04307199]
[1644672455573,0.25194279,42362.0,42357.0,0.35447251]
[1644672455767,0.00091545,42362.0,42357.0,0.07672451]
[1644672456017,0.24514731,42362.0,42357.0,0.07672451]
[1644672456618,0.328168,42361.0,42357.0,0.07672451]
[1644672457018,0.49617465,42362.0,42357.0,0.07672451]
[1644672457223,0.24514731,42362.0,42357.0,0.07672451]
[1644672457620,0.2398429,42362.0,42357.0,0.07672451]
[1644672458020,0.333146,42361.0,42357.0,0.07672451]
[1644672458223,0.2398429,42362.0,42357.0,0.07672451]
[1644672458422,0.333146,42361.0,42357.0,0.07672451]
[1644672458822,0.333146,42361.0,42358.0,0.5]
[1644672460181,0.58417334,42361.0,42358.0,0.37266927]
[1644672460582,0.333146,42360.0,42357.0,0.07672451]
[1644672460783,0.333146,42360.0,42354.0,0.0001]
[1644672460981,0.333146,42360.0,42354.0,0.5001]
[1644672461181,0.059051,42359.0,42354.0,0.5]
[1644672461381,0.333146,42358.0,42354.0,0.5001]
[1644672461682,0.333146,42358.0,42354.0,0.5]
[1644672461883,0.333146,42358.0,42354.0,0.58743161]
[1644672462084,0.333146,42358.0,42354.0,0.58733161]
[1644672462281,0.333146,42358.0,42354.0,0.58743161]
[1644672462491,0.333146,42358.0,42354.0,0.58733161]
[1644672462687,0.059051,42359.0,42354.0,0.58743161]
[1644672462881,0.333146,42357.0,42354.0,0.58733161]
[1644672463082,0.333146,42357.0,42354.0,0.58743161]
[1644672463285,0.333146,42357.0,42354.0,0.58733161]
[1644672463519,0.333146,42357.0,42354.0,0.58743161]
[1644672463722,0.333146,42357.0,42354.0,0.58733161]
[1644672464121,0.333146,42357.0,42354.0,0.58743161]
[1644672464319,0.333146,42357.0,42354.0,0.58733161]
[1644672464820,0.333146,42357.0,42354.0,0.58743161]
[1644672465019,0.333146,42357.0,42354.0,0.58733161]
[1644672465219,0.333146,42357.0,42354.0,0.5]
[1644672465420,0.333146,42357.0,42354.0,0.0001]
[1644672465619,0.059051,42359.0,42352.0,0.0001]
[1644672466421,0.059051,42359.0,42353.0,0.07713309]
[1644672466621,0.059051,42359.0,42354.0,0.0001]
[1644672467665,0.333146,42357.0,42354.0,0.0001]
[1644672467866,0.21550972,42358.0,42352.0,0.0001]
[1644672468065,0.26550972,42358.0,42352.0,0.0001]
[1644672468266,0.31007834,42359.0,42352.0,0.0001]
[1644672468571,0.1,42360.0,42353.0,0.04307199]
[1644672468572,0.25102734,42360.0,42353.0,0.04307199]
[1644672468766,0.25102734,42360.0,42358.0,0.06544839]
[1644672469568,0.25102734,42361.0,42358.0,0.06544839]
[1644672470367,0.25102734,42360.0,42358.0,0.06544839]
[1644672471417,0.25102734,42361.0,42358.0,0.06544839]
[1644672471818,0.25102734,42361.0,42357.0,0.18901038]
[1644672472618,0.25102734,42361.0,42357.0,0.1895062]
[1644672473019,0.25102734,42361.0,42357.0,0.00049582]
[1644672473417,0.25102734,42361.0,42357.0,0.07388407]
[1644672473821,0.31007134,42362.0,42357.0,0.07388407]
[1644672474220,0.333146,42361.0,42357.0,0.07388407]
[1644672474619,0.333146,42360.0,42357.0,0.07338825]
[1644672474869,0.333146,42361.0,42357.0,0.07388407]
[1644672475271,0.059044,42362.0,42357.0,0.07388407]
[1644672475466,0.333146,42361.0,42357.0,0.07388407]
[1644672475868,0.333146,42361.0,42357.0,0.07338825]
[1644672476071,0.333146,42361.0,42357.0,0.0738837]
[1644672476670,0.05712162,42362.0,42357.0,0.0738837]
[1644672476871,0.333146,42361.0,42357.0,0.0738837]
[1644672477071,0.05712162,42362.0,42357.0,0.07338825]
[1644672477269,0.05712162,42362.0,42357.0,0.0738837]
[1644672477470,0.333146,42361.0,42357.0,0.0738837]
[1644672478371,0.333146,42361.0,42357.0,0.07338825]
[1644672478617,0.333146,42361.0,42357.0,0.0738837]
[1644672479418,0.333146,42361.0,42357.0,0.07338825]
[1644672479622,0.333146,42361.0,42357.0,0.07388407]
[1644672480218,0.05712162,42362.0,42357.0,0.35178036]
[1644672480422,0.00049574,42364.0,42361.0,0.04307199]
[1644672480622,0.25129075,42367.0,42362.0,0.284592]
[1644672480820,0.25129075,42367.0,42363.0,0.284583]
[1644672480821,0.00026341,42367.0,42363.0,0.284583]
[1644672481023,0.00026341,42367.0,42361.0,0.04307199]
[1644672481024,0.00049574,42364.0,42361.0,0.04307199]
[1644672481920,0.25129075,42367.0,42361.0,0.04307199]
[1644672482120,0.25102734,42368.0,42367.0,0.28419155]
[1644672482369,0.25102734,42368.0,42367.0,0.19300181]
[1644672483569,0.25102734,42369.0,42367.0,0.19300181]
[1644672483769,0.30102734,42369.0,42367.0,0.19300181]
[1644672484173,0.30102734,42369.0,42359.0,0.00049585]
[1644672484372,0.059044,42368.0,42358.0,0.5001]
[1644672484573,0.118088,42367.0,42359.0,0.00059586]
[1644672484871,0.11835141,42367.0,42359.0,0.00059586]
[1644672485072,0.11835141,42367.0,42363.0,0.19491388]
[1644672485873,0.11884715,42367.0,42363.0,0.19491388]
[1644672486732,0.11835141,42367.0,42363.0,0.19491388]